{"text_format":"2","workbook":"xlsx","n_sheets":1,"sheets":["Sheet1"],"not_rendered":{"charts":0,"images":1,"macros":0,"external_links":0,"defined_names":0,"comments":0,"pivot_tables":0},"unopened":[],"bounds":{"document_bytes":16777216,"sheet_cells":100000,"run_cost":"one","rows_first":2000,"rows_last":500,"rows_between":2000,"halvings":0,"cell_chars":16384,"cell_head_chars":4096},"cells_cut":0,"cells_raw":0,"read":"whole","date_system":"1900"}

{"sheet":"Sheet1","index":0,"n_rows":35,"n_cols":9,"rows_kept":35,"cut":false,"hidden":false,"merged":[[6,1,6,7],[7,1,7,7],[12,2,12,4],[12,5,12,6],[15,0,16,0],[15,8,16,8]]}
[]
[]
[null,null,null,"Member Expense Statement"]
[]
[]
[]
[]
[null,"Date and location of meeting"]
[]
[]
[null,"Name"]
[]
[null,"Address"]
[null,null,"Street",null,null,"City",null,"Zip"]
[]
["Date","Sunday","Monday","Tuesday","Wednesday","Thursday","Friday","Saturday","Total each line"]
[]
["Breakfast",{"$nulls":7},{"$f":"SUM(B18:H18)","v":0}]
["Lunch",{"$nulls":7},0]
["Dinner",{"$nulls":7},0]
["Lodging",{"$nulls":7},0]
["Shuttle",{"$nulls":7},0]
["Airfare",{"$nulls":7},0]
["Auto Mileage $",{"$f":"+B28*0.575","v":0},0,0,0,0,0,0,0]
["Parking",{"$nulls":7},0]
["Portage",{"$nulls":7},0]
["Total",{"$f":"SUM(B18:B26)","v":0},0,0,0,0,0,0,0]
["# of miles",{"$nulls":7},0]
[]
["Attach receipts for all expenses",{"$nulls":6},"Total Due",{"$f":"+I27","v":0}]
["PSTA "]
[null,"-pays maximum of $35 for one meal or $65 per day."]
[null,"(Only when CTA has not provided meals at the conference.)"]
[null,"-for 1/2 of a hotel room unless an odd number of participants attend."]
[null,"-covers mileage when carpooling with two or more members."]